[Event "FIDE World Rapid Chess Championship 2021"]
[White "Salem, A.R. Saleh"]
[Black "Shoker, Samy"]
[WhiteFideId "9301348"]
[BlackFideId "627143"]
[WhiteElo "2729"]
[BlackElo "2550"]
[Result "1-0"]
[Round "07"]
[TimeControl "900+10"]
[Date "2021.12.27"]
[WhiteClock "0:02:54"]
[BlackClock "0:00:38"]

1. d4 {[%clk 0:15:00]}  d6 {[%clk 0:15:00]} 2. e4 {[%clk 0:15:00]}  g6 {[%clk 0:15:29]} 3. c4 {[%clk 0:15:22]}  Bg7 {[%clk 0:15:29]} 4. Nc3 {[%clk 0:15:22]}  e5 {[%clk 0:15:29]} 5. d5 {[%clk 0:15:22]}  f5 {[%clk 0:15:29]} 6. exf5 {[%clk 0:15:22]}  gxf5 {[%clk 0:15:29]} 7. Qh5+ {[%clk 0:15:22]}  Kf8 {[%clk 0:15:29]} 8. Qd1 {[%clk 0:15:22]}  Nf6 {[%clk 0:15:29]} 9. Nf3 {[%clk 0:15:22]}  a5 {[%clk 0:15:29]} 10. Be2 {[%clk 0:14:30]}  Na6 {[%clk 0:15:05]} 11. O-O {[%clk 0:14:30]}  Bd7 {[%clk 0:15:05]} 12. g3 {[%clk 0:14:30]}  Nc5 {[%clk 0:14:44]} 13. Nh4 {[%clk 0:12:33]}  Rg8 {[%clk 0:14:44]} 14. Kh1 {[%clk 0:12:34]}  a4 {[%clk 0:12:05]} 15. Be3 {[%clk 0:12:23]}  b6 {[%clk 0:10:44]} 16. Qc2 {[%clk 0:12:23]}  Qc8 {[%clk 0:08:17]} 17. Rae1 {[%clk 0:11:01]}  c6 {[%clk 0:08:17]} 18. Bxc5 {[%clk 0:10:20]}  bxc5 {[%clk 0:07:05]} 19. f3 {[%clk 0:10:20]}  cxd5 {[%clk 0:07:05]} 20. cxd5 {[%clk 0:10:20]}  c4 {[%clk 0:07:05]} 21. g4 {[%clk 0:10:20]}  a3 {[%clk 0:07:05]} 22. bxa3 {[%clk 0:09:45]}  Rxa3 {[%clk 0:06:18]} 23. Nxf5 {[%clk 0:09:45]}  Bxf5 {[%clk 0:06:18]} 24. gxf5 {[%clk 0:09:45]}  Qa6 {[%clk 0:05:49]} 25. Rb1 {[%clk 0:07:34]}  Bh6 {[%clk 0:03:50]} 26. Rb4 {[%clk 0:07:34]}  Qa7 {[%clk 0:03:16]} 27. Rxc4 {[%clk 0:04:32]}  Qg7 {[%clk 0:03:16]} 28. Rc8+ {[%clk 0:03:50]}  Ne8 {[%clk 0:01:22]} 29. Bb5 {[%clk 0:03:50]}  Rxc3 {[%clk 0:01:22]} 30. Rxc3 {[%clk 0:03:50]}  Kf7 {[%clk 0:00:38]} 31. Rc7+ {[%clk 0:02:54]}  Nxc7 {[%clk 0:00:38]} 32. Qxc7+ {[%clk 0:02:54]}  Kf6 {[%clk 0:00:38]} 33. Qxd6+ {[%clk 0:02:54]}  Kxf5 {[%clk 0:00:38]} 34. Bd7+ {[%clk 0:02:54]}  Kf4 {[%clk 0:00:38]} 35. Qb4+ {[%clk 0:02:54]}  Ke3 {[%clk 0:00:38]} 36. Qe4+ {[%clk 0:02:54]}  Kd2 {[%clk 0:00:38]} 37. Rf2+ {[%clk 0:02:54]}  Kd1 {[%clk 0:00:38]} 38. Ba4+ {[%clk 0:02:54]} 1-0


[Site "http://www.Chess.com"]

[Event "FIDE World Rapid Chess Championship 2021"]
[White "Shirov, Alexei"]
[Black "Indjic, Aleksandar"]
[WhiteFideId "2209390"]
[BlackFideId "911925"]
[WhiteElo "2702"]
[BlackElo "2544"]
[Result "0-1"]
[Round "07"]
[TimeControl "900+10"]
[Date "2021.12.27"]
[WhiteClock "0:00:42"]
[BlackClock "0:01:07"]

1. e4 {[%clk 0:15:00]}  e5 {[%clk 0:15:00]} 2. Nf3 {[%clk 0:15:00]}  Nf6 {[%clk 0:15:00]} 3. Nxe5 {[%clk 0:15:00]}  d6 {[%clk 0:15:00]} 4. Nf3 {[%clk 0:15:00]}  Nxe4 {[%clk 0:15:00]} 5. d4 {[%clk 0:15:00]}  d5 {[%clk 0:15:00]} 6. Bd3 {[%clk 0:15:00]}  Bd6 {[%clk 0:15:00]} 7. O-O {[%clk 0:15:49]}  O-O {[%clk 0:15:56]} 8. c4 {[%clk 0:15:49]}  c6 {[%clk 0:15:56]} 9. Nc3 {[%clk 0:15:49]}  Nxc3 {[%clk 0:15:56]} 10. bxc3 {[%clk 0:15:49]}  dxc4 {[%clk 0:15:56]} 11. Bxc4 {[%clk 0:15:49]}  Bg4 {[%clk 0:15:56]} 12. h3 {[%clk 0:15:49]}  Bh5 {[%clk 0:15:56]} 13. Be2 {[%clk 0:13:56]}  Nd7 {[%clk 0:16:12]} 14. Be3 {[%clk 0:13:56]}  Qc7 {[%clk 0:15:42]} 15. Nd2 {[%clk 0:12:41]}  Bg6 {[%clk 0:15:42]} 16. Nc4 {[%clk 0:12:41]}  Bh2+ {[%clk 0:14:07]} 17. Kh1 {[%clk 0:11:13]}  Bf4 {[%clk 0:14:07]} 18. Bd3 {[%clk 0:11:22]}  b5 {[%clk 0:13:36]} 19. Bxg6 {[%clk 0:08:06]}  hxg6 {[%clk 0:13:36]} 20. Bxf4 {[%clk 0:07:56]}  Qxf4 {[%clk 0:09:37]} 21. Nb2 {[%clk 0:07:56]}  Rfe8 {[%clk 0:09:37]} 22. a4 {[%clk 0:07:56]}  Nb6 {[%clk 0:09:37]} 23. Nd3 {[%clk 0:07:56]}  Qf5 {[%clk 0:09:37]} 24. a5 {[%clk 0:06:30]}  Nd5 {[%clk 0:08:57]} 25. Rc1 {[%clk 0:06:30]}  Re4 {[%clk 0:08:57]} 26. Ne5 {[%clk 0:04:23]}  Re8 {[%clk 0:08:45]} 27. Qf3 {[%clk 0:04:04]}  Qxf3 {[%clk 0:07:34]} 28. Nxf3 {[%clk 0:04:04]}  a6 {[%clk 0:07:34]} 29. c4 {[%clk 0:04:04]}  Nb4 {[%clk 0:07:34]} 30. cxb5 {[%clk 0:04:04]}  cxb5 {[%clk 0:07:34]} 31. Rc7 {[%clk 0:04:04]}  R4e7 {[%clk 0:07:34]} 32. Rfc1 {[%clk 0:02:15]}  f6 {[%clk 0:06:57]} 33. Rxe7 {[%clk 0:02:15]}  Rxe7 {[%clk 0:06:57]} 34. Rc8+ {[%clk 0:02:15]}  Kf7 {[%clk 0:06:57]} 35. h4 {[%clk 0:02:15]}  Ke6 {[%clk 0:06:57]} 36. Nd2 {[%clk 0:02:15]}  Kd6 {[%clk 0:07:18]} 37. Nb3 {[%clk 0:00:37]}  Kd5 {[%clk 0:04:56]} 38. Rc5+ {[%clk 0:00:34]}  Kd6 {[%clk 0:04:56]} 39. Rc8 {[%clk 0:00:34]}  Nc6 {[%clk 0:02:33]} 40. Ra8 {[%clk 0:00:41]}  Ra7 {[%clk 0:02:33]} 41. Rc8 {[%clk 0:00:41]}  Kd5 {[%clk 0:02:33]} 42. Kh2 {[%clk 0:00:41]}  b4 {[%clk 0:02:33]} 43. Kg3 {[%clk 0:00:41]}  Rd7 {[%clk 0:02:33]} 44. Nc5 {[%clk 0:00:41]}  Ra7 {[%clk 0:02:33]} 45. Nb3 {[%clk 0:00:41]}  Kc4 {[%clk 0:01:18]} 46. Nd2+ {[%clk 0:01:02]}  Kd3 {[%clk 0:01:18]} 47. Nb3 {[%clk 0:01:02]}  Ne7 {[%clk 0:01:18]} 48. Rb8 {[%clk 0:01:02]}  Kc3 {[%clk 0:01:18]} 49. Nc5 {[%clk 0:01:02]}  Nf5+ {[%clk 0:01:18]} 50. Kg4 {[%clk 0:01:02]}  Nxd4 {[%clk 0:01:18]} 51. Ne4+ {[%clk 0:01:02]}  Kd3 {[%clk 0:01:18]} 52. Nc5+ {[%clk 0:01:02]}  Kc4 {[%clk 0:01:18]} 53. Na4 {[%clk 0:01:02]}  Nc6 {[%clk 0:01:07]} 54. Rb6 {[%clk 0:00:42]}  Nxa5 {[%clk 0:01:07]} 55. Nb2+ {[%clk 0:00:42]}  Kc3 {[%clk 0:01:07]} 56. Na4+ {[%clk 0:00:42]}  Kb3 {[%clk 0:01:07]} 57. Nc5+ {[%clk 0:00:42]}  Kc4 {[%clk 0:01:07]} 58. Nxa6 {[%clk 0:00:42]}  b3 {[%clk 0:01:07]} 0-1


[Site "http://www.Chess.com"]

[Event "FIDE World Rapid Chess Championship 2021"]
[White "Saric, Ivan"]
[Black "Durarbayli, Vasif"]
[WhiteFideId "14508150"]
[BlackFideId "13402935"]
[WhiteElo "2684"]
[BlackElo "2532"]
[Result "1-0"]
[Round "07"]
[TimeControl "900+10"]
[Date "2021.12.27"]
[WhiteClock "0:05:00"]
[BlackClock "0:01:47"]

1. e4 {[%clk 0:15:00]}  e5 {[%clk 0:15:00]} 2. Nf3 {[%clk 0:15:00]}  Nc6 {[%clk 0:15:00]} 3. Bb5 {[%clk 0:15:00]}  a6 {[%clk 0:15:00]} 4. Ba4 {[%clk 0:15:00]}  Nf6 {[%clk 0:15:00]} 5. O-O {[%clk 0:15:00]}  Be7 {[%clk 0:15:00]} 6. d3 {[%clk 0:15:00]}  b5 {[%clk 0:15:00]} 7. Bb3 {[%clk 0:15:00]}  O-O {[%clk 0:15:00]} 8. Nc3 {[%clk 0:15:00]}  d6 {[%clk 0:15:00]} 9. a3 {[%clk 0:15:00]}  h6 {[%clk 0:15:00]} 10. h3 {[%clk 0:15:50]}  Re8 {[%clk 0:16:17]} 11. Be3 {[%clk 0:15:50]}  Bf8 {[%clk 0:16:17]} 12. a4 {[%clk 0:15:50]}  Rb8 {[%clk 0:16:17]} 13. axb5 {[%clk 0:15:50]}  axb5 {[%clk 0:16:17]} 14. Nd5 {[%clk 0:15:50]}  Be6 {[%clk 0:16:17]} 15. Nxf6+ {[%clk 0:15:00]}  Qxf6 {[%clk 0:15:18]} 16. c3 {[%clk 0:15:00]}  Qd8 {[%clk 0:11:50]} 17. d4 {[%clk 0:12:54]}  Bxb3 {[%clk 0:09:10]} 18. Qxb3 {[%clk 0:07:02]}  exd4 {[%clk 0:09:10]} 19. cxd4 {[%clk 0:07:02]}  Rxe4 {[%clk 0:09:10]} 20. Rfc1 {[%clk 0:07:21]}  Ne7 {[%clk 0:06:37]} 21. Qd3 {[%clk 0:06:26]}  Re6 {[%clk 0:04:55]} 22. d5 {[%clk 0:06:26]}  Rf6 {[%clk 0:04:55]} 23. Ra7 {[%clk 0:06:26]}  Rf5 {[%clk 0:03:50]} 24. Rcxc7 {[%clk 0:05:21]}  Nxd5 {[%clk 0:03:50]} 25. Rd7 {[%clk 0:05:00]}  Qf6 {[%clk 0:01:47]} 26. Rxf7 {[%clk 0:05:00]} 1-0


[Site "http://www.Chess.com"]

[Event "FIDE World Rapid Chess Championship 2021"]
[White "Parligras, Mircea-Emilian"]
[Black "Svane, Rasmus"]
[WhiteFideId "1204297"]
[BlackFideId "4657101"]
[WhiteElo "2550"]
[BlackElo "2677"]
[Result "1/2-1/2"]
[Round "07"]
[TimeControl "900+10"]
[Date "2021.12.27"]
[WhiteClock "0:06:36"]
[BlackClock "0:05:25"]

1. d4 {[%clk 0:15:00]}  Nf6 {[%clk 0:15:00]} 2. c4 {[%clk 0:15:00]}  e6 {[%clk 0:15:00]} 3. Nf3 {[%clk 0:15:00]}  d5 {[%clk 0:15:00]} 4. Nc3 {[%clk 0:15:00]}  c5 {[%clk 0:15:00]} 5. cxd5 {[%clk 0:15:00]}  cxd4 {[%clk 0:15:00]} 6. Qxd4 {[%clk 0:15:00]}  exd5 {[%clk 0:15:00]} 7. e4 {[%clk 0:15:00]}  dxe4 {[%clk 0:15:00]} 8. Qxd8+ {[%clk 0:15:00]}  Kxd8 {[%clk 0:15:00]} 9. Ng5 {[%clk 0:15:48]}  Be6 {[%clk 0:16:28]} 10. Nxe6+ {[%clk 0:15:48]}  fxe6 {[%clk 0:16:28]} 11. Bg5 {[%clk 0:15:48]}  Nc6 {[%clk 0:16:28]} 12. O-O-O {[%clk 0:15:48]}  Ke8 {[%clk 0:16:28]} 13. Bb5 {[%clk 0:15:48]}  Rc8 {[%clk 0:16:28]} 14. Kb1 {[%clk 0:15:48]}  Bb4 {[%clk 0:16:28]} 15. Bxf6 {[%clk 0:15:48]}  gxf6 {[%clk 0:16:28]} 16. Nxe4 {[%clk 0:15:48]}  f5 {[%clk 0:16:28]} 17. Nd6+ {[%clk 0:14:08]}  Bxd6 {[%clk 0:16:55]} 18. Rxd6 {[%clk 0:14:08]}  Ke7 {[%clk 0:16:55]} 19. Rhd1 {[%clk 0:14:08]}  Rhd8 {[%clk 0:16:41]} 20. Rxd8 {[%clk 0:12:12]}  Rxd8 {[%clk 0:16:41]} 21. Rxd8 {[%clk 0:12:12]}  Nxd8 {[%clk 0:16:41]} 22. f4 {[%clk 0:12:12]}  Kd6 {[%clk 0:16:58]} 23. Kc2 {[%clk 0:11:11]}  Kc5 {[%clk 0:16:58]} 24. Bd7 {[%clk 0:11:11]}  Kd4 {[%clk 0:14:21]} 25. Kd2 {[%clk 0:11:27]}  Ke4 {[%clk 0:14:21]} 26. g3 {[%clk 0:11:27]}  h6 {[%clk 0:08:52]} 27. a3 {[%clk 0:11:43]}  e5 {[%clk 0:05:48]} 28. fxe5 {[%clk 0:11:43]}  Kxe5 {[%clk 0:05:48]} 29. Ke3 {[%clk 0:11:43]}  Nf7 {[%clk 0:05:48]} 30. Bb5 {[%clk 0:06:36]}  Ng5 {[%clk 0:05:25]} 1/2-1/2


[Site "http://www.Chess.com"]

[Event "FIDE World Rapid Chess Championship 2021"]
[White "Fridman, Daniel"]
[Black "Sjugirov, Sanan"]
[WhiteFideId "11600454"]
[BlackFideId "4189302"]
[WhiteElo "2542"]
[BlackElo "2634"]
[Result "1/2-1/2"]
[Round "07"]
[TimeControl "900+10"]
[Date "2021.12.27"]
[WhiteClock "0:09:23"]
[BlackClock "0:09:49"]

1. d4 {[%clk 0:15:00]}  d5 {[%clk 0:15:00]} 2. c4 {[%clk 0:15:00]}  e6 {[%clk 0:15:00]} 3. Nf3 {[%clk 0:15:00]}  Nf6 {[%clk 0:15:00]} 4. g3 {[%clk 0:15:00]}  Bb4+ {[%clk 0:15:00]} 5. Nbd2 {[%clk 0:15:00]}  O-O {[%clk 0:15:00]} 6. Bg2 {[%clk 0:15:00]}  b6 {[%clk 0:15:38]} 7. O-O {[%clk 0:15:47]}  Bb7 {[%clk 0:15:38]} 8. b3 {[%clk 0:15:47]}  a5 {[%clk 0:15:38]} 9. Bb2 {[%clk 0:15:47]}  c5 {[%clk 0:15:38]} 10. a3 {[%clk 0:15:47]}  Bxd2 {[%clk 0:15:38]} 11. Nxd2 {[%clk 0:15:47]}  Nbd7 {[%clk 0:15:44]} 12. Rc1 {[%clk 0:15:27]}  a4 {[%clk 0:15:44]} 13. b4 {[%clk 0:14:34]}  cxb4 {[%clk 0:12:27]} 14. axb4 {[%clk 0:14:34]}  b5 {[%clk 0:12:27]} 15. cxb5 {[%clk 0:14:34]}  Qb6 {[%clk 0:12:27]} 16. Nb1 {[%clk 0:14:34]}  Qxb5 {[%clk 0:12:27]} 17. Ba3 {[%clk 0:14:34]}  Nb6 {[%clk 0:11:41]} 18. Nc3 {[%clk 0:13:40]}  Qd7 {[%clk 0:11:41]} 19. b5 {[%clk 0:13:40]}  Rfc8 {[%clk 0:10:38]} 20. Bc5 {[%clk 0:12:36]}  Qd8 {[%clk 0:10:38]} 21. Bxb6 {[%clk 0:12:36]}  Qxb6 {[%clk 0:10:38]} 22. Nxa4 {[%clk 0:12:36]}  Qxb5 {[%clk 0:10:38]} 23. Nc5 {[%clk 0:11:32]}  Bc6 {[%clk 0:10:01]} 24. Rb1 {[%clk 0:11:32]}  Qa5 {[%clk 0:10:01]} 25. Qd3 {[%clk 0:09:23]}  Nd7 {[%clk 0:09:49]} 26. Rfc1 {[%clk 0:09:23]}  Nxc5 {[%clk 0:09:49]} 27. Rxc5 {[%clk 0:09:23]}  Qd8 {[%clk 0:09:49]} 28. Rbc1 {[%clk 0:09:23]}  Bd7 {[%clk 0:09:49]} 29. Rxc8 {[%clk 0:09:23]}  Rxc8 {[%clk 0:09:49]} 30. Rxc8 {[%clk 0:09:23]}  Qxc8 {[%clk 0:09:49]} 31. Bf3 {[%clk 0:09:23]} 1/2-1/2


[Site "http://www.Chess.com"]

[Event "FIDE World Rapid Chess Championship 2021"]
[White "Predke, Alexandr"]
[Black "Sindarov, Javokhir"]
[WhiteFideId "24107581"]
[BlackFideId "14205483"]
[WhiteElo "2630"]
[BlackElo "2353"]
[Result "1-0"]
[Round "07"]
[TimeControl "900+10"]
[Date "2021.12.27"]
[WhiteClock "0:05:54"]
[BlackClock "0:03:39"]

1. d4 {[%clk 0:15:00]}  Nf6 {[%clk 0:15:00]} 2. c4 {[%clk 0:15:00]}  c5 {[%clk 0:15:00]} 3. d5 {[%clk 0:15:00]}  g6 {[%clk 0:15:00]} 4. Nc3 {[%clk 0:15:00]}  Bg7 {[%clk 0:15:00]} 5. e4 {[%clk 0:15:00]}  d6 {[%clk 0:15:00]} 6. Nf3 {[%clk 0:15:00]}  O-O {[%clk 0:15:00]} 7. h3 {[%clk 0:15:00]}  e6 {[%clk 0:15:00]} 8. Be3 {[%clk 0:15:00]}  exd5 {[%clk 0:15:20]} 9. cxd5 {[%clk 0:16:11]}  Re8 {[%clk 0:15:20]} 10. Bd3 {[%clk 0:16:11]}  c4 {[%clk 0:15:20]} 11. Bc2 {[%clk 0:16:11]}  b5 {[%clk 0:15:20]} 12. Nxb5 {[%clk 0:16:21]}  Qa5+ {[%clk 0:14:31]} 13. Nc3 {[%clk 0:16:21]}  Nxe4 {[%clk 0:14:31]} 14. Bxe4 {[%clk 0:16:21]}  Rxe4 {[%clk 0:14:11]} 15. O-O {[%clk 0:14:37]}  Rxe3 {[%clk 0:14:11]} 16. fxe3 {[%clk 0:14:37]}  Nd7 {[%clk 0:14:11]} 17. Nd4 {[%clk 0:14:48]}  Ne5 {[%clk 0:11:35]} 18. Qa4 {[%clk 0:14:48]}  Qd8 {[%clk 0:11:35]} 19. Nf3 {[%clk 0:13:16]}  Bd7 {[%clk 0:11:04]} 20. Qb4 {[%clk 0:10:23]}  Rb8 {[%clk 0:10:11]} 21. Qxd6 {[%clk 0:09:50]}  Rxb2 {[%clk 0:10:11]} 22. Nxe5 {[%clk 0:09:57]}  Qg5 {[%clk 0:03:32]} 23. Rf2 {[%clk 0:09:57]}  Qxe3 {[%clk 0:03:32]} 24. Ne4 {[%clk 0:05:54]}  Qxe4 {[%clk 0:03:39]} 25. Nxd7 {[%clk 0:05:54]} 1-0


[Site "http://www.Chess.com"]

[Event "FIDE World Rapid Chess Championship 2021"]
[White "Vidit, Santosh Gujrathi"]
[Black "Dudin, Gleb"]
[WhiteFideId "5029465"]
[BlackFideId "34184934"]
[WhiteElo "2629"]
[BlackElo "2247"]
[Result "1/2-1/2"]
[Round "07"]
[TimeControl "900+10"]
[Date "2021.12.27"]
[WhiteClock "0:00:37"]
[BlackClock "0:00:36"]

1. d4 {[%clk 0:15:00]}  d5 {[%clk 0:15:00]} 2. c4 {[%clk 0:15:00]}  c6 {[%clk 0:15:00]} 3. Nf3 {[%clk 0:15:00]}  Nf6 {[%clk 0:15:34]} 4. cxd5 {[%clk 0:15:21]}  cxd5 {[%clk 0:15:34]} 5. Nc3 {[%clk 0:15:21]}  Nc6 {[%clk 0:15:34]} 6. Bf4 {[%clk 0:15:21]}  a6 {[%clk 0:15:34]} 7. Ne5 {[%clk 0:15:21]}  e6 {[%clk 0:15:34]} 8. e3 {[%clk 0:15:21]}  Nd7 {[%clk 0:13:10]} 9. Nxc6 {[%clk 0:15:26]}  bxc6 {[%clk 0:11:14]} 10. Bd3 {[%clk 0:15:26]}  Be7 {[%clk 0:08:45]} 11. O-O {[%clk 0:14:14]}  c5 {[%clk 0:08:45]} 12. b3 {[%clk 0:14:14]}  O-O {[%clk 0:07:13]} 13. Na4 {[%clk 0:13:23]}  cxd4 {[%clk 0:07:13]} 14. exd4 {[%clk 0:13:23]}  Bb7 {[%clk 0:07:13]} 15. Rc1 {[%clk 0:12:25]}  Rc8 {[%clk 0:06:15]} 16. Qe2 {[%clk 0:12:25]}  Ba3 {[%clk 0:06:01]} 17. Rc2 {[%clk 0:10:48]}  Qf6 {[%clk 0:05:10]} 18. Qe3 {[%clk 0:08:10]}  h6 {[%clk 0:02:47]} 19. b4 {[%clk 0:06:18]}  Bxb4 {[%clk 0:02:09]} 20. Rb1 {[%clk 0:04:42]}  a5 {[%clk 0:02:09]} 21. a3 {[%clk 0:04:42]}  Rxc2 {[%clk 0:02:09]} 22. Bxc2 {[%clk 0:04:42]}  Rc8 {[%clk 0:02:09]} 23. Bd3 {[%clk 0:04:09]}  Bxa3 {[%clk 0:00:21]} 24. Rxb7 {[%clk 0:04:09]}  Bc1 {[%clk 0:00:21]} 25. Be5 {[%clk 0:00:57]}  Nxe5 {[%clk 0:00:28]} 26. Qxe5 {[%clk 0:00:57]}  Qxe5 {[%clk 0:00:28]} 27. dxe5 {[%clk 0:00:57]}  Bf4 {[%clk 0:00:28]} 28. g3 {[%clk 0:00:57]}  Bxe5 {[%clk 0:00:28]} 29. Ra7 {[%clk 0:00:57]}  g6 {[%clk 0:00:28]} 30. Rxa5 {[%clk 0:00:57]}  Rc1+ {[%clk 0:00:28]} 31. Kg2 {[%clk 0:00:57]}  Ra1 {[%clk 0:00:28]} 32. Ra8+ {[%clk 0:00:57]}  Kg7 {[%clk 0:00:36]} 33. Nb6 {[%clk 0:00:19]}  Rd1 {[%clk 0:00:36]} 34. Be2 {[%clk 0:00:19]}  Rd2 {[%clk 0:00:36]} 35. Kf1 {[%clk 0:00:19]}  Bd4 {[%clk 0:00:36]} 36. Nd7 {[%clk 0:00:19]}  Rb2 {[%clk 0:00:36]} 37. Rc8 {[%clk 0:00:19]}  Rb1+ {[%clk 0:00:36]} 38. Kg2 {[%clk 0:00:19]}  Rb2 {[%clk 0:00:36]} 39. Kf1 {[%clk 0:00:19]}  Rb1+ {[%clk 0:00:36]} 40. Kg2 {[%clk 0:00:19]}  Rb2 {[%clk 0:00:36]} 41. Kf1 {[%clk 0:00:37]}  Rb1+ {[%clk 0:00:36]} 42. Kg2 {[%clk 0:00:37]}  Rb2 {[%clk 0:00:36]} 1/2-1/2


[Site "http://www.Chess.com"]

[Event "FIDE World Rapid Chess Championship 2021"]
[White "Narayanan.S.L, "]
[Black "Howell, David W L"]
[WhiteFideId "5058422"]
[BlackFideId "410608"]
[WhiteElo "2482"]
[BlackElo "2624"]
[Result "1/2-1/2"]
[Round "07"]
[TimeControl "900+10"]
[Date "2021.12.27"]
[WhiteClock "0:00:55"]
[BlackClock "0:01:31"]

1. d4 {[%clk 0:15:00]}  d5 {[%clk 0:15:00]} 2. c4 {[%clk 0:15:00]}  c6 {[%clk 0:15:00]} 3. Nf3 {[%clk 0:15:00]}  Nf6 {[%clk 0:15:00]} 4. Nc3 {[%clk 0:15:00]}  dxc4 {[%clk 0:15:00]} 5. a4 {[%clk 0:15:00]}  e6 {[%clk 0:15:00]} 6. e3 {[%clk 0:15:28]}  c5 {[%clk 0:15:53]} 7. Bxc4 {[%clk 0:15:28]}  cxd4 {[%clk 0:15:53]} 8. exd4 {[%clk 0:15:28]}  Be7 {[%clk 0:15:53]} 9. O-O {[%clk 0:15:28]}  O-O {[%clk 0:15:53]} 10. Ne5 {[%clk 0:15:28]}  Nc6 {[%clk 0:15:53]} 11. Nxc6 {[%clk 0:14:14]}  bxc6 {[%clk 0:15:03]} 12. Bf4 {[%clk 0:14:14]}  a5 {[%clk 0:15:11]} 13. Qd3 {[%clk 0:12:48]}  Qb6 {[%clk 0:15:11]} 14. Rfd1 {[%clk 0:11:56]}  Ba6 {[%clk 0:11:53]} 15. b3 {[%clk 0:09:23]}  Rfd8 {[%clk 0:11:53]} 16. Ne4 {[%clk 0:08:42]}  Nxe4 {[%clk 0:11:22]} 17. Qxe4 {[%clk 0:04:47]}  Bf6 {[%clk 0:11:22]} 18. Be3 {[%clk 0:04:47]}  Bxc4 {[%clk 0:05:13]} 19. bxc4 {[%clk 0:03:31]}  Qa6 {[%clk 0:05:13]} 20. Rac1 {[%clk 0:03:31]}  Rd7 {[%clk 0:05:13]} 21. g3 {[%clk 0:03:31]}  Rad8 {[%clk 0:05:13]} 22. Rd2 {[%clk 0:03:31]}  h6 {[%clk 0:03:45]} 23. h4 {[%clk 0:02:17]}  Rb7 {[%clk 0:03:45]} 24. Kh2 {[%clk 0:02:20]}  Rb4 {[%clk 0:01:38]} 25. Qc2 {[%clk 0:02:20]}  Qb7 {[%clk 0:01:38]} 26. Rcd1 {[%clk 0:02:20]}  Qa6 {[%clk 0:01:38]} 27. Rc1 {[%clk 0:02:20]}  Rd7 {[%clk 0:01:31]} 28. Rd3 {[%clk 0:00:55]}  Qb7 {[%clk 0:01:31]} 29. Rd2 {[%clk 0:00:55]}  Qa6 {[%clk 0:01:31]} 30. Rd3 {[%clk 0:00:55]}  Qb7 {[%clk 0:01:31]} 31. Rd2 {[%clk 0:00:55]}  Rb3 {[%clk 0:01:31]} 32. Qe4 {[%clk 0:00:55]}  Rb4 {[%clk 0:01:31]} 33. Qc2 {[%clk 0:00:55]}  Qa6 {[%clk 0:01:31]} 1/2-1/2


[Site "http://www.Chess.com"]

[Event "FIDE World Rapid Chess Championship 2021"]
[White "Martirosyan, Haik M."]
[Black "Santos Latasa, Jaime"]
[WhiteFideId "13306553"]
[BlackFideId "2293307"]
[WhiteElo "2377"]
[BlackElo "2618"]
[Result "1/2-1/2"]
[Round "07"]
[TimeControl "900+10"]
[Date "2021.12.27"]
[WhiteClock "0:00:05"]
[BlackClock "0:01:20"]

1. d4 {[%clk 0:15:00]}  Nf6 {[%clk 0:15:00]} 2. c4 {[%clk 0:15:00]}  e6 {[%clk 0:15:00]} 3. Nf3 {[%clk 0:15:00]}  d5 {[%clk 0:15:00]} 4. Nc3 {[%clk 0:15:00]}  c6 {[%clk 0:15:00]} 5. Bg5 {[%clk 0:15:00]}  h6 {[%clk 0:15:00]} 6. Bxf6 {[%clk 0:15:00]}  Qxf6 {[%clk 0:15:00]} 7. e3 {[%clk 0:15:00]}  g6 {[%clk 0:15:00]} 8. Bd3 {[%clk 0:15:00]}  Bg7 {[%clk 0:15:00]} 9. O-O {[%clk 0:15:00]}  O-O {[%clk 0:15:00]} 10. e4 {[%clk 0:15:59]}  Qd8 {[%clk 0:16:33]} 11. e5 {[%clk 0:15:59]}  dxc4 {[%clk 0:16:33]} 12. Bxc4 {[%clk 0:15:59]}  c5 {[%clk 0:16:33]} 13. dxc5 {[%clk 0:15:59]}  Nd7 {[%clk 0:16:33]} 14. Qe2 {[%clk 0:15:59]}  Nxc5 {[%clk 0:16:33]} 15. Rad1 {[%clk 0:15:59]}  Qe7 {[%clk 0:16:33]} 16. h4 {[%clk 0:14:09]}  a6 {[%clk 0:17:00]} 17. Ne4 {[%clk 0:13:03]}  b5 {[%clk 0:12:44]} 18. Nxc5 {[%clk 0:13:03]}  Qxc5 {[%clk 0:12:44]} 19. Bd3 {[%clk 0:13:03]}  Bb7 {[%clk 0:12:44]} 20. Be4 {[%clk 0:13:03]}  Bxe4 {[%clk 0:12:44]} 21. Qxe4 {[%clk 0:13:03]}  Rfd8 {[%clk 0:12:44]} 22. Rd6 {[%clk 0:13:03]}  Qc4 {[%clk 0:12:36]} 23. Qxc4 {[%clk 0:11:17]}  bxc4 {[%clk 0:10:42]} 24. Rxd8+ {[%clk 0:11:17]}  Rxd8 {[%clk 0:10:42]} 25. Rc1 {[%clk 0:11:17]}  Rb8 {[%clk 0:10:42]} 26. Rc2 {[%clk 0:09:15]}  Rb5 {[%clk 0:10:31]} 27. Kf1 {[%clk 0:09:15]}  Ra5 {[%clk 0:10:31]} 28. a3 {[%clk 0:07:27]}  Rb5 {[%clk 0:09:18]} 29. Ke2 {[%clk 0:07:27]}  Bxe5 {[%clk 0:09:18]} 30. Nxe5 {[%clk 0:07:27]}  Rxe5+ {[%clk 0:09:18]} 31. Kf3 {[%clk 0:05:12]}  Rb5 {[%clk 0:09:32]} 32. Ke3 {[%clk 0:04:28]}  Rb3+ {[%clk 0:07:56]} 33. Kd4 {[%clk 0:04:28]}  c3 {[%clk 0:07:56]} 34. bxc3 {[%clk 0:04:28]}  Rxa3 {[%clk 0:05:56]} 35. c4 {[%clk 0:04:07]}  Kf8 {[%clk 0:05:56]} 36. Kc5 {[%clk 0:04:07]}  Ke7 {[%clk 0:05:56]} 37. Kb6 {[%clk 0:04:07]}  a5 {[%clk 0:04:37]} 38. c5 {[%clk 0:03:18]}  a4 {[%clk 0:04:37]} 39. c6 {[%clk 0:03:18]}  Rb3+ {[%clk 0:04:37]} 40. Kc5 {[%clk 0:02:45]}  a3 {[%clk 0:04:37]} 41. Rd2 {[%clk 0:02:45]}  Rb2 {[%clk 0:02:09]} 42. Rd7+ {[%clk 0:01:12]}  Kf6 {[%clk 0:02:09]} 43. Ra7 {[%clk 0:01:12]}  Rc2+ {[%clk 0:02:09]} 44. Kb6 {[%clk 0:01:12]}  Rb2+ {[%clk 0:02:09]} 45. Kc7 {[%clk 0:01:12]}  a2 {[%clk 0:02:09]} 46. Kd7 {[%clk 0:00:20]}  Rd2+ {[%clk 0:01:46]} 47. Ke8 {[%clk 0:00:20]}  Rxf2 {[%clk 0:01:46]} 48. Rxf7+ {[%clk 0:00:20]}  Ke5 {[%clk 0:01:46]} 49. Ra7 {[%clk 0:00:20]}  Kd6 {[%clk 0:01:46]} 50. c7 {[%clk 0:00:20]}  Rc2 {[%clk 0:01:46]} 51. Rxa2 {[%clk 0:00:20]}  Rxc7 {[%clk 0:01:46]} 52. Rf2 {[%clk 0:00:20]}  Ke5 {[%clk 0:01:07]} 53. g3 {[%clk 0:00:01]}  Rc3 {[%clk 0:01:07]} 54. Kf7 {[%clk 0:00:01]}  Rxg3 {[%clk 0:01:07]} 55. Re2+ {[%clk 0:00:01]}  Kf5 {[%clk 0:01:07]} 56. Rxe6 {[%clk 0:00:01]}  h5 {[%clk 0:01:07]} 57. Rf6+ {[%clk 0:00:01]}  Kg4 {[%clk 0:01:07]} 58. Kxg6 {[%clk 0:00:01]}  Kxh4+ {[%clk 0:01:07]} 59. Kh6 {[%clk 0:00:01]}  Ra3 {[%clk 0:01:07]} 60. Rg6 {[%clk 0:00:01]}  Ra5 {[%clk 0:01:07]} 61. Rb6 {[%clk 0:00:01]}  Ra4 {[%clk 0:01:07]} 62. Rb5 {[%clk 0:00:01]}  Ra6+ {[%clk 0:01:07]} 63. Kg7 {[%clk 0:00:01]}  Re6 {[%clk 0:01:07]} 64. Kf7 {[%clk 0:00:05]}  Rd6 {[%clk 0:01:20]} 65. Kg7 {[%clk 0:00:05]}  Re6 {[%clk 0:01:20]} 66. Kf7 {[%clk 0:00:05]}  Re4 {[%clk 0:01:20]} 67. Kg6 {[%clk 0:00:05]}  Re6+ {[%clk 0:01:20]} 1/2-1/2


[Site "http://www.Chess.com"]